fUSD/lending_fUSD_20250510
["ID","MTS","AMOUNT","RATE_DAILY","PERIOD"]
[360557188,1746887448929,-400.0,0.00019998,2]
[360557189,1746887448938,-400.0,0.00019998,2]
[360557190,1746887448947,-400.0,0.00019998,2]
[360557191,1746887448957,-400.0,0.00019998,2]
[360557192,1746887448966,-400.0,0.00019998,2]
[360557193,1746887448976,-400.0,0.00019998,2]
[360557194,1746887448985,-400.0,0.00019998,2]
[360557195,1746887448994,-400.0,0.00019998,2]
[360557196,1746887449004,-400.0,0.00019998,2]
[360557197,1746887449013,-400.0,0.00019998,2]
[360557198,1746887449022,-400.0,0.00019998,2]
[360557199,1746887449031,-392.75280783,0.00019998,2]
[360557200,1746887449040,-400.0,0.00019998,2]
[360557201,1746887449049,-400.0,0.00019998,2]
[360557202,1746887449058,-400.0,0.00019998,2]
[360557203,1746887449068,-400.0,0.00019998,2]
[360557204,1746887449078,-400.0,0.00019998,2]
[360557205,1746887449088,-400.0,0.00019998,2]
[360557206,1746887449098,-400.0,0.00019998,2]
[360557207,1746887449107,-400.0,0.00019998,2]
[360557208,1746887449116,-400.0,0.00019998,2]
[360557209,1746887449125,-400.0,0.00019998,2]
[360557210,1746887449135,-400.0,0.00019998,2]
[360557211,1746887449144,-400.0,0.00019998,2]
[360557212,1746887449154,-400.0,0.00019998,2]
[360557213,1746887449164,-400.0,0.00019998,2]
[360557214,1746887449173,-400.0,0.00019998,2]
[360557215,1746887449183,-400.0,0.00019998,2]
[360557216,1746887449192,-400.0,0.00019998,2]
[360557217,1746887449201,-400.0,0.00019998,2]
[360557218,1746887449211,-400.0,0.00019998,2]
[360557219,1746887449220,-400.0,0.00019998,2]
[360557220,1746887449229,-400.0,0.00019998,2]
[360557221,1746887449238,-452.64449531,0.00019998,2]
[360557222,1746887449248,-400.0,0.00019998,2]
[360557223,1746887449257,-400.0,0.00019998,2]
[360557224,1746887449414,-400.0,0.00019998,2]
[360557225,1746887449424,-197.15741684,0.00019998,2]
[360557226,1746887449433,-400.0,0.00019998,2]
[360557227,1746887449442,-400.0,0.00019998,2]
[360557228,1746887449451,-400.0,0.00019998,2]
[360557229,1746887449461,-400.0,0.00019998,2]
[360557230,1746887449471,-400.0,0.00019998,2]
[360557231,1746887449480,-409.90274378,0.00019998,2]
[360557232,1746887449491,-400.0,0.00019998,2]
[360557233,1746887449503,-400.0,0.00019998,2]
[360557234,1746887449516,-400.0,0.00019998,2]
[360557235,1746887449526,-400.0,0.00019998,2]
[360557236,1746887449536,-400.0,0.00019998,2]
[360557237,1746887449547,-400.0,0.00019998,2]
[360557238,1746887449556,-400.0,0.00019998,2]
[360557239,1746887449566,-400.0,0.00019998,2]
[360557240,1746887449576,-517.97008812,0.00019998,2]
[360557241,1746887449586,-400.0,0.00019998,2]
[360557242,1746887449596,-400.0,0.00019998,2]
[360557243,1746887449606,-400.0,0.00019998,2]
[360557244,1746887449615,-400.0,0.00019998,2]
[360557245,1746887449625,-400.0,0.00019998,2]
[360557246,1746887449634,-400.0,0.00019998,2]
[360557247,1746887449643,-400.0,0.00019998,2]
[360557248,1746887449653,-400.0,0.00019998,2]
[360557249,1746887449663,-400.0,0.00019998,2]
[360557250,1746887449673,-385.86120868,0.00019998,2]
[360557251,1746887449682,-400.0,0.00019998,2]
[360557252,1746887449692,-400.0,0.00019998,2]
[360557253,1746887449703,-400.0,0.00019998,2]
[360557254,1746887449712,-400.0,0.00019998,2]
[360557255,1746887449722,-400.0,0.00019998,2]
[360557256,1746887449731,-400.0,0.00019998,2]
[360557257,1746887449740,-400.0,0.00019998,2]
[360557258,1746887449749,-400.0,0.00019998,2]
[360557259,1746887449759,-400.0,0.00019998,2]
[360557260,1746887449768,-558.02,0.00019998,2]
[360557261,1746887449778,-558.02,0.00019998,2]
[360557262,1746887449787,-558.02,0.00019998,2]
[360557263,1746887449796,-558.02,0.00019998,2]
[360557264,1746887449806,-400.0,0.00019998,2]
[360557265,1746887449816,-400.0,0.00019998,2]
[360557266,1746887449826,-262.0187765,0.00019998,2]
[360557267,1746887449836,-695.56,0.00019998,2]
[360557268,1746887449846,-695.56,0.00019998,2]
[360557269,1746887449855,-695.56,0.00019998,2]
[360557270,1746887449865,-695.56,0.00019998,2]
[360557271,1746887449874,-400.0,0.00019998,2]
[360557272,1746887449884,-400.0,0.00019998,2]
[360557273,1746887449893,-400.0,0.00019998,2]
[360557274,1746887449902,-400.0,0.00019998,2]
[360557275,1746887449912,-743.17,0.00019998,2]
[360557276,1746887449923,-743.17,0.00019998,2]
[360557277,1746887449933,-743.17,0.00019998,2]
[360557278,1746887449943,-743.17,0.00019998,2]
[360557279,1746887449953,-400.0,0.00019998,2]
[360557280,1746887449963,-400.0,0.00019998,2]
[360557281,1746887449972,-400.0,0.00019998,2]
[360557282,1746887449982,-400.0,0.00019998,2]
[360557283,1746887449992,-400.0,0.00019998,2]
[360557284,1746887450001,-400.0,0.00019998,2]
[360557285,1746887450010,-400.0,0.00019998,2]
[360557286,1746887450020,-400.0,0.00019998,2]
[360557287,1746887450029,-2475.75,0.00019998,2]
[360557288,1746887450039,-2475.75,0.00019998,2]
[360557289,1746887450048,-2475.75,0.00019998,2]
[360557290,1746887450057,-2475.75,0.00019998,2]
[360557291,1746887450067,-400.0,0.00019998,2]
[360557292,1746887450076,-400.0,0.00019998,2]
[360557293,1746887450086,-400.0,0.00019998,2]
[360557294,1746887450095,-400.0,0.00019998,2]
[360557295,1746887450104,-400.0,0.00019998,2]
[360557296,1746887450113,-400.0,0.00019998,2]
[360557297,1746887450122,-400.0,0.00019998,2]
[360557298,1746887450132,-400.0,0.00019998,2]
[360557299,1746887450142,-400.0,0.00019998,2]
[360557300,1746887450151,-379.56807797,0.00019998,2]
[360557301,1746887450161,-400.0,0.00019998,2]
[360557302,1746887450170,-400.0,0.00019998,2]
[360557303,1746887450179,-400.0,0.00019998,2]
[360557304,1746887450188,-432.97,0.00019998,2]
[360557305,1746887450198,-400.0,0.00019998,2]
[360557306,1746887450209,-432.97,0.00019998,2]
[360557307,1746887450220,-432.97,0.00019998,2]
[360557308,1746887450229,-432.97,0.00019998,2]
[360557309,1746887450239,-957.75,0.00019998,2]
[360557310,1746887450250,-957.75,0.00019998,2]
[360557311,1746887450260,-957.75,0.00019998,2]
[360557312,1746887450269,-957.75,0.00019998,2]
[360557313,1746887450279,-400.0,0.00019998,2]
[360557314,1746887450289,-400.0,0.00019998,2]
[360557315,1746887450299,-400.0,0.00019998,2]
[360557316,1746887450309,-400.0,0.00019998,2]
[360557317,1746887450319,-400.0,0.00019998,2]
[360557318,1746887450330,-400.0,0.00019998,2]
[360557319,1746887450339,-400.0,0.00019998,2]
[360557320,1746887450349,-400.0,0.00019998,2]
[360557321,1746887450359,-590.39,0.00019998,2]
[360557322,1746887450367,-590.39,0.00019998,2]
[360557323,1746887450379,-590.39,0.00019998,2]
[360557324,1746887450389,-590.39,0.00019998,2]
[360557325,1746887450399,-400.0,0.00019998,2]
[360557326,1746887450411,-400.0,0.00019998,2]
[360557327,1746887450422,-400.0,0.00019998,2]
[360557328,1746887450432,-400.0,0.00019998,2]
[360557329,1746887450441,-400.0,0.00019998,2]
[360557330,1746887450450,-400.0,0.00019998,2]
[360557331,1746887450460,-400.0,0.00019998,2]
[360557332,1746887450469,-400.0,0.00019998,2]
[360557333,1746887450479,-400.0,0.00019998,2]
[360557334,1746887450488,-400.0,0.00019998,2]
[360557335,1746887450499,-400.0,0.00019998,2]
[360557336,1746887450512,-400.0,0.00019998,2]
[360557337,1746887450521,-400.0,0.00019998,2]
[360557338,1746887450530,-546.11,0.00019998,2]
[360557339,1746887450540,-546.11,0.00019998,2]
[360557340,1746887450550,-546.11,0.00019998,2]
[360557341,1746887450560,-546.11,0.00019998,2]
[360557342,1746887450570,-546.11,0.00019998,2]
[360557343,1746887450582,-400.0,0.00019998,2]
[360557344,1746887450592,-400.0,0.00019998,2]
[360557345,1746887450601,-400.0,0.00019998,2]
[360557346,1746887450611,-400.0,0.00019998,2]
[360557347,1746887450620,-257.55,0.00019998,2]
[360557348,1746887450629,-400.0,0.00019998,2]
[360557349,1746887450638,-400.0,0.00019998,2]
[360557350,1746887450648,-400.0,0.00019998,2]
[360557351,1746887450658,-400.0,0.00019998,2]
[360557352,1746887450667,-400.0,0.00019998,2]
[360557353,1746887450677,-400.0,0.00019998,2]
[360557354,1746887450687,-400.0,0.00019998,2]
[360557355,1746887450696,-400.0,0.00019998,2]
[360557356,1746887450705,-400.0,0.00019998,2]
[360557357,1746887450715,-400.0,0.00019998,2]
[360557358,1746887450724,-400.0,0.00019998,2]
[360557359,1746887450734,-400.0,0.00019998,2]
[360557360,1746887450743,-400.0,0.00019998,2]
[360557361,1746887450752,-400.0,0.00019998,2]
[360557362,1746887450761,-400.0,0.00019998,2]
[360557363,1746887450770,-400.0,0.00019998,2]
[360557364,1746887450779,-400.0,0.00019998,2]
[360557365,1746887450788,-400.0,0.00019998,2]
[360557366,1746887450798,-400.0,0.00019998,2]
[360557367,1746887450807,-400.0,0.00019998,2]
[360557368,1746887450816,-400.0,0.00019998,2]
[360557369,1746887450825,-400.0,0.00019998,2]
[360557370,1746887450835,-400.0,0.00019998,2]
[360557371,1746887450844,-400.0,0.00019998,2]
[360557372,1746887450853,-400.0,0.00019998,2]
[360557373,1746887450863,-400.0,0.00019998,2]
[360557374,1746887450873,-400.0,0.00019998,2]
[360557375,1746887450882,-400.0,0.00019998,2]
[360557376,1746887450892,-400.0,0.00019998,2]
[360557377,1746887450902,-400.0,0.00019998,2]
[360557378,1746887450911,-400.0,0.00019998,2]
[360557379,1746887450921,-400.0,0.00019998,2]
[360557380,1746887450930,-400.0,0.00019998,2]
[360557381,1746887450940,-3956.72,0.00019998,2]
[360557382,1746887450950,-400.0,0.00019998,2]
[360557383,1746887450959,-3956.72,0.00019998,2]
[360557384,1746887450969,-195.31201732,0.00019998,2]
[360557385,1746887450978,-3956.72,0.00019998,2]
[360557386,1746887450988,-3956.72,0.00019998,2]
[360557387,1746887450997,-75841.48623698,0.00019998,2]
[360557388,1746887451031,-5160.0,0.00019998,2]
[360557389,1746887501806,-300.74773461,0.00018449,2]
[360557390,1746887511167,-178.44759218,0.00018449,2]
[360557391,1746887521930,500.0,0.00016438,2]
[360557392,1746887522262,500.0,0.00016438,2]
[360557393,1746887522620,500.0,0.00016438,2]
[360557394,1746887523285,500.0,0.00016438,2]
[360557395,1746887523811,500.0,0.00016438,2]
[360557396,1746887526077,-20.80467321,0.00018449,2]
[360557397,1746887526113,-151.60143103,0.00018449,2]
[360557398,1746887542289,-303.00232384,0.00018449,2]
[360557399,1746887542325,-15.8286387,0.00018449,2]
[360557400,1746887556608,-339.52828045,0.00018449,2]
[360557401,1746887571048,-144.64308085,0.00018449,2]
[360557402,1746887589850,-151.0,0.00018449,2]
[360557403,1746887598907,-153.4,0.00018449,2]
[360557404,1746887601752,-195.6,0.00018449,2]
[360557405,1746887601789,-188.44163347,0.00018449,2]
[360557406,1746887616109,-217.99600651,0.00018449,2]
[360557407,1746887631156,-93.56236002,0.00018449,2]
[360557408,1746887631189,-423.97594648,0.00018449,2]
[360557409,1746887647314,-76.02405352,0.00018449,2]
[360557410,1746887647351,-91.83569718,0.00018449,2]
[360557411,1746887661164,-300.0,0.00018449,2]
[360557412,1746887676099,-235.13615954,0.00018448,2]
[360557413,1746887691197,-204.20285276,0.00018448,2]
[360557414,1746887694171,161.44,0.00028114,120]
[360557415,1746887706625,-60.6609877,0.00018448,2]
[360557416,1746887706667,-166.55944944,0.00018448,2]
[360557417,1746887708589,447.771979,7.945e-05,2]
[360557418,1746887721212,-327.333586,0.00018448,2]
[360557419,1746887736110,-6.10696456,0.00018448,2]
[360557420,1746887736147,-272.55152629,0.00018448,2]
[360557422,1746887844008,500.0,0.00016438,2]
[360557423,1746887844336,500.0,0.00016438,2]
[360557424,1746887844694,500.0,0.00016438,2]
[360557425,1746887845022,154.15124971,0.00016438,2]
[360557426,1746887845048,275.75772268,0.00016438,2]
[360557427,1746887845071,70.09102761,0.00016438,2]
[360557428,1746887845689,347.29066603,0.00016438,2]
[360557429,1746887911813,666.9026825,0.0003,30]
[360557430,1746887962966,-217.31621384,0.00018246,2]
[360557431,1746887975406,-152.0,0.0001824,2]
[360557432,1746887981008,4521.02604557,0.0003,30]
[360557433,1746888077867,797.05,0.00013699,2]
[360557434,1746888171562,705.31,0.00016075,2]
[360557435,1746888183912,500.0,0.00016438,2]
[360557436,1746888184067,500.0,0.00016438,2]
[360557437,1746888184428,301.53,0.00016438,2]
[360557438,1746888184452,198.47,0.00016438,2]
[360557439,1746888184797,500.0,0.00016438,2]
[360557440,1746888185224,500.0,0.00016438,2]
[360557651,1746888244888,-183.39323493,0.00017907,2]
[360557652,1746888247472,-13.88676507,0.00017907,2]
[360557653,1746888247497,-148.96165421,0.00018023,2]
[360557654,1746888261064,-160.46,0.00017827,2]
[360557655,1746888261091,-2.38841928,0.00018023,2]
[360557656,1746888276230,-98.64992651,0.00018023,2]
[360557657,1746888327742,2972.06,0.00020575,30]
[360557658,1746888340135,-250.0,0.00018129,2]
[360557659,1746888340156,-173.51889727,0.00018139,2]
[360557660,1746888340188,-335.61277653,0.00018178,2]
[360557661,1746888340208,-574.59093055,0.0001818,2]
[360557662,1746888362689,-150.0,0.00017975,2]
[360557663,1746888362716,-8.68121743,0.00018078,2]
[360557664,1746888366152,-241.31878257,0.00018078,2]
[360557665,1746888381138,-251.79378616,0.00017931,2]
[360557666,1746888397295,-48.58621384,0.00017931,2]
[360557667,1746888421025,-203.20757232,0.00017931,2]
[360557668,1746888426158,-563.8736581,0.00017931,2]
[360557669,1746888434135,-250.0,0.00017,2]
[360557670,1746888434156,-200.0,0.00017873,2]
[360557671,1746888434177,-232.91876958,0.00017931,2]
[360557672,1746888434197,-5.80339318,0.0001818,2]
[360557673,1746888435122,-1120.11567627,0.0001818,2]
[360557674,1746888435145,-74.3,0.0001824,2]
[360557675,1746888435168,-87.62378616,0.00018246,2]
[360557676,1746888435189,-705.31,0.00018339,2]
[360557677,1746888435209,-163.55,0.00018362,2]
[360557678,1746888435230,-246.94945882,0.00018472,2]
[360557679,1746888435252,-236.40802503,0.00018485,2]
[360557680,1746888443121,-1331.33097766,0.00018485,2]
[360557681,1746888443158,-123.41099731,0.00018485,2]
[360557682,1746888443181,-1312.17895886,0.00018519,2]
[360557683,1746888443201,-468.65,0.00018528,2]
[360557684,1746888443221,-1.62247967,0.00018531,2]
[360557685,1746888448135,-470.37752033,0.00018531,2]
[360557686,1746888448159,-291.48544026,0.00018532,2]
[360557687,1746888509399,500.0,0.00016438,2]
[360557688,1746888509745,500.0,0.00016438,2]
[360557689,1746888510210,500.0,0.00016438,2]
[360557690,1746888510572,500.0,0.00016438,2]
[360557691,1746888511155,309.51153922,0.00016438,2]
[360557692,1746888512440,152.06839873,0.00016438,2]
[360557693,1746888512466,347.93160127,0.00016438,2]
[360557694,1746888513583,500.0,0.00016438,2]
[360557695,1746888513632,500.0,0.00016438,2]
[360557696,1746888514098,500.0,0.00016438,2]
[360557697,1746888514477,496.21466948,0.00016438,2]
[360557722,1746888632295,-1244.14855016,0.00018151,2]
[360557723,1746888632306,-141.53144984,0.00018151,2]
[360557724,1746888632315,-663.07481933,0.00018162,2]
[360557725,1746888632327,-415.03518067,0.00018162,2]
[360557726,1746888632336,-1902.37981913,0.00018168,2]
[360557727,1746888632421,-706.65018087,0.00018168,2]
[360557728,1746888632430,-231.34981913,0.0001852,2]
[360557729,1746888632454,-518.23066378,0.0001852,2]
[360557730,1746888632589,-20.50071709,0.0001852,2]
[360557731,1746888632599,-1200.0,0.00018531,2]
[360557732,1746888632608,-300.0,0.00018532,2]
[360557733,1746888632618,-181.87140791,0.00018532,2]
[360557734,1746888632628,-157.20799676,0.00018532,2]
[360557735,1746888632638,-648.89,0.00018533,2]
[360557736,1746888632649,-999.99,0.00018533,2]
[360557737,1746888632658,-6417.93987824,0.00018533,2]
[360557746,1746888638252,-1121.70137876,0.00018533,2]
[360557747,1746888638264,-1975.0,0.00018533,2]
[360557748,1746888638276,-3806.828743,0.00018533,2]
[360557749,1746888638286,-9999.99,0.00018533,2]
[360557750,1746888638296,-1864.54,0.00018533,2]
[360557751,1746888638306,-1540.35,0.00018533,2]
[360557752,1746888638315,-335.67,0.00018533,2]
[360557753,1746888638325,-150.99,0.00018533,2]
[360557754,1746888638335,-1130.76,0.00018533,2]
[360557755,1746888638346,-487.22,0.00018533,2]
[360557756,1746888638356,-632.33685124,0.00018556,2]
[360557757,1746888638366,-151.0,0.00018608,2]
[360557758,1746888638375,-6901.25,0.00018619,2]
[360557759,1746888638384,-5280.62,0.00018619,2]
[360557760,1746888638394,-4860.72,0.00018619,2]
[360557761,1746888638406,-2354.98,0.00018619,2]
[360557762,1746888638417,-9999.99,0.00018619,2]
[360557763,1746888638428,-53970.04419129,0.00018619,2]
[360557766,1746888638747,-292.69521615,0.00018619,2]
[360557767,1746888638759,-6898.924,0.00018619,2]
[360557768,1746888638771,-48077.45659256,0.00018619,2]
[360557769,1746888638780,-4693.35126721,0.00018619,2]
[360557770,1746888638792,-5306.63873279,0.00018619,2]
[360557771,1746888638801,-946.42,0.00018619,2]
[360557772,1746888638810,-23900.0,0.0001862,2]
[360557773,1746888638820,-396.12,0.00018656,2]
[360557774,1746888638829,-1312.17895879,0.00018672,2]
[360557775,1746888638839,-200.0,0.00018693,2]
[360557776,1746888638849,-161.44,0.00018743,2]
[360557777,1746888638859,-200.0,0.0001878,2]
[360557778,1746888638873,-275.5,0.00018809,2]
[360557779,1746888638883,-1312.17895879,0.00018825,2]
[360557780,1746888638892,-250.0,0.00018936,2]
[360557781,1746888638902,-200.0,0.00018952,2]
[360557782,1746888638912,-350.71,0.00018952,2]
[360557783,1746888638922,-389.42,0.00018967,2]
[360557784,1746888638931,-150.0,0.00018974,2]
[360557785,1746888638941,-1312.17895879,0.00018979,2]
[360557786,1746888638950,-668.65185757,0.00018999,2]
[360557787,1746888638959,-207.4,0.00018999,2]
[360557788,1746888638968,-1601.64,0.00019,2]
[360557789,1746888638978,-300.0,0.00019,2]
[360557790,1746888638987,-1312.17895879,0.00019132,2]
[360557791,1746888638997,-355.6896416,0.00019178,2]
[360557792,1746888639006,-307.72253798,0.00019178,2]
[360557793,1746888639015,-400.0,0.00019178,2]
[360557794,1746888639024,-188.4415882,0.00019178,2]
[360557795,1746888639034,-400.0,0.00019178,2]
[360557796,1746888639043,-400.0,0.00019178,2]
[360557797,1746888639054,-400.0,0.00019178,2]
[360557798,1746888639065,-400.0,0.00019178,2]
[360557799,1746888639074,-405.3983683,0.00019178,2]
[360557800,1746888639084,-400.0,0.00019178,2]
[360557801,1746888639094,-400.0,0.00019178,2]
[360557802,1746888639106,-400.0,0.00019178,2]
[360557803,1746888639116,-400.0,0.00019178,2]
[360557804,1746888639125,-205.0,0.00019178,2]
[360557805,1746888639134,-406.50082128,0.00019178,2]
[360557806,1746888639143,-416.99185373,0.00019178,2]
[360557807,1746888639152,-400.0,0.00019178,2]
[360557808,1746888639161,-513.40208859,0.00019178,2]
[360557809,1746888639170,-509.39152825,0.00019178,2]
[360557810,1746888639179,-400.0,0.00019178,2]
[360557811,1746888639189,-400.0,0.00019178,2]
[360557812,1746888639198,-418.39574863,0.00019178,2]
[360557813,1746888639207,-400.0,0.00019178,2]
[360557814,1746888639216,-400.0,0.00019178,2]
[360557815,1746888639225,-409.54032658,0.00019178,2]
[360557816,1746888639235,-404.94584192,0.00019178,2]
[360557817,1746888639245,-400.0,0.00019178,2]
[360557818,1746888639254,-209.43329083,0.00019178,2]
[360557819,1746888639263,-400.0,0.00019178,2]
[360557820,1746888639273,-504.91958991,0.00019178,2]
[360557821,1746888639282,-3136.42,0.00019178,2]
[360557822,1746888639291,-508.00547192,0.00019178,2]
[360557823,1746888639300,-400.0,0.00019178,2]
[360557824,1746888639310,-400.0,0.00019178,2]
[360557825,1746888639319,-165.16930641,0.00019178,2]
[360557826,1746888639328,-400.0,0.00019178,2]
[360557827,1746888639337,-168.33565755,0.00019178,2]
[360557828,1746888639346,-401.85142162,0.00019178,2]
[360557829,1746888639355,-412.38,0.00019178,2]
[360557830,1746888639365,-177.54297621,0.00019178,2]
[360557831,1746888639374,-400.0,0.00019178,2]
[360557832,1746888639383,-400.0,0.00019178,2]
[360557833,1746888639393,-500.0,0.00019178,2]
[360557834,1746888639404,-500.0,0.00019178,2]
[360557835,1746888639414,-500.0,0.00019178,2]
[360557836,1746888639423,-500.0,0.00019178,2]
[360557837,1746888639432,-500.0,0.00019178,2]
[360557838,1746888639441,-500.0,0.00019178,2]
[360557839,1746888639451,-500.0,0.00019178,2]
[360557840,1746888639460,-500.0,0.00019178,2]
[360557841,1746888639469,-500.0,0.00019178,2]
[360557842,1746888639480,-500.0,0.00019178,2]
[360557843,1746888639489,-500.0,0.00019178,2]
[360557844,1746888639498,-500.0,0.00019178,2]
[360557845,1746888639507,-500.0,0.00019178,2]
[360557846,1746888639517,-500.0,0.00019178,2]
[360557847,1746888639526,-500.0,0.00019178,2]
[360557848,1746888639535,-500.0,0.00019178,2]
[360557849,1746888639544,-500.0,0.00019178,2]
[360557850,1746888639553,-500.0,0.00019178,2]
[360557851,1746888639562,-500.0,0.00019178,2]
[360557852,1746888639572,-500.0,0.00019178,2]
[360557853,1746888639581,-500.0,0.00019178,2]
[360557854,1746888639590,-500.0,0.00019178,2]
[360557855,1746888639600,-500.0,0.00019178,2]
[360557856,1746888639609,-500.0,0.00019178,2]
[360557857,1746888639618,-500.0,0.00019178,2]
[360557858,1746888639628,-500.0,0.00019178,2]
[360557859,1746888639637,-500.0,0.00019178,2]
[360557860,1746888639649,-1078.69255941,0.00019178,2]
[360557861,1746888639658,-1078.69255941,0.00019178,2]
[360557862,1746888639667,-1078.69255941,0.00019178,2]
[360557863,1746888639677,-1078.69255941,0.00019178,2]
[360557864,1746888639687,-1078.69255941,0.00019178,2]
[360557865,1746888639697,-1078.69255941,0.00019178,2]
[360557866,1746888639706,-1078.69255941,0.00019178,2]
[360557867,1746888639715,-1078.69255941,0.00019178,2]
[360557868,1746888639726,-1078.69255941,0.00019178,2]
[360557869,1746888639734,-1078.69255941,0.00019178,2]
[360557870,1746888639744,-1078.69255941,0.00019178,2]
[360557871,1746888639753,-1078.69255941,0.00019178,2]
[360557872,1746888639762,-1078.69255941,0.00019178,2]
[360557873,1746888639772,-1078.69255941,0.00019178,2]
[360557874,1746888639781,-1078.69255941,0.00019178,2]
[360557875,1746888639790,-1078.69255941,0.00019178,2]
[360557876,1746888639799,-1078.69255941,0.00019178,2]
[360557877,1746888639808,-1078.69255941,0.00019178,2]
[360557878,1746888639817,-1078.69255941,0.00019178,2]
[360557879,1746888639827,-1078.69255941,0.00019178,2]
[360557880,1746888639836,-1078.69255941,0.00019178,2]
[360557881,1746888639845,-1078.69255941,0.00019178,2]
[360557882,1746888639855,-1078.69255941,0.00019178,2]
[360557883,1746888639866,-1078.69255941,0.00019178,2]
[360557884,1746888639876,-1078.69255941,0.00019178,2]
[360557885,1746888639885,-1078.69255941,0.00019178,2]
[360557886,1746888639895,-1078.69255941,0.00019178,2]
[360557887,1746888639904,-1078.69255941,0.00019178,2]
[360557888,1746888639914,-1078.69255941,0.00019178,2]
[360557889,1746888639923,-1078.69255941,0.00019178,2]
[360557890,1746888639934,-1078.69255941,0.00019178,2]
[360557891,1746888639950,-1078.69255941,0.00019178,2]
[360557892,1746888639959,-1078.69255941,0.00019178,2]
[360557893,1746888639968,-1078.69255941,0.00019178,2]
[360557894,1746888639978,-1078.69255941,0.00019178,2]
[360557895,1746888639987,-1078.69255941,0.00019178,2]
[360557896,1746888639996,-1078.69255941,0.00019178,2]
[360557897,1746888640005,-412.08878214,0.00019178,2]
[360557898,1746888640014,-273.62547742,0.00019178,2]
[360557899,1746888640024,-1869.85,0.00019178,2]
[360557900,1746888640033,-2600.71,0.00019178,2]
[360557901,1746888640042,-1060.71435008,0.00019178,2]
[360557902,1746888640052,-1060.71435008,0.00019178,2]
[360557903,1746888640062,-1060.71435008,0.00019178,2]
[360557904,1746888640071,-1060.71435008,0.00019178,2]
[360557905,1746888640080,-1060.71435008,0.00019178,2]
[360557906,1746888640090,-1060.71435008,0.00019178,2]
[360557907,1746888640099,-1060.71435008,0.00019178,2]
[360557908,1746888640108,-1060.71435008,0.00019178,2]
[360557909,1746888640117,-1060.71435008,0.00019178,2]
[360557910,1746888640126,-1060.71435008,0.00019178,2]
[360557911,1746888640134,-1060.71435008,0.00019178,2]
[360557912,1746888640143,-1060.71435008,0.00019178,2]
[360557913,1746888640153,-1060.71435008,0.00019178,2]
[360557914,1746888640162,-1060.71435008,0.00019178,2]
[360557915,1746888640171,-1060.71435008,0.00019178,2]
[360557916,1746888640180,-1060.71435008,0.00019178,2]
[360557917,1746888640190,-1060.71435008,0.00019178,2]
[360557918,1746888640199,-1060.71435008,0.00019178,2]
[360557919,1746888640208,-1060.71435008,0.00019178,2]
[360557920,1746888640217,-1060.71435009,0.00019178,2]
[360557921,1746888640226,-1060.71435009,0.00019178,2]
[360557923,1746888640235,-1060.71435009,0.00019178,2]
[360557925,1746888640245,-1060.71435009,0.00019178,2]
[360557927,1746888640256,-1060.71435009,0.00019178,2]
[360557929,1746888640272,-1060.71435009,0.00019178,2]
[360557932,1746888640282,-1060.71435009,0.00019178,2]
[360557934,1746888640292,-1060.71435009,0.00019178,2]
[360557936,1746888640300,-450.0,0.00019178,2]
[360557938,1746888640309,-2075.14,0.00019178,2]
[360557940,1746888640318,-2075.26,0.00019178,2]
[360557942,1746888640327,-322.78362405,0.00019178,2]
[360557943,1746888640336,-400.0,0.00019178,2]